bitfinex/quotes_ETHUSD_20240601
["timestamp","ask_amount","ask_price","bid_price","bid_amount"]
[1717226128105,2.57601,3787.0,3786.5,7.43]
[1717226128299,2.2841,3787.0,3786.5,7.43]
[1717226128605,0.635,3786.9,3786.5,7.43]
[1717226130337,2.2841,3787.0,3786.5,7.43]
[1717226130741,2.2841,3787.0,3786.3,2.64104]
[1717226140658,2.2841,3787.6,3786.3,3.27604]
[1717226140843,0.07101946,3786.9,3786.5,2.3846]
[1717226141050,0.635,3787.5,3786.5,2.3846]
[1717226141276,0.07100015,3786.8,3786.5,2.3846]
[1717226141475,0.635,3787.5,3786.5,3.0196]
[1717226141654,0.07097801,3786.7,3786.5,3.0196]
[1717226141973,0.635,3787.5,3786.5,3.0196]
[1717226142335,0.07113299,3787.4,3786.5,3.0196]
[1717226142976,0.07113299,3787.4,3786.6,2.64085]
[1717226143194,0.07113299,3787.4,3786.7,0.635]
[1717226143475,2.2841,3787.6,3786.7,1.256045]
[1717226143780,0.07111086,3787.3,3786.7,0.635]
[1717226143981,2.2841,3787.6,3786.7,0.635]
[1717226144142,0.07108872,3787.2,3786.7,0.635]
[1717226144343,2.9191,3787.6,3786.7,0.635]
[1717226144544,0.07106658,3787.1,3786.7,0.635]
[1717226144765,2.9191,3787.6,3786.8,0.566045]
[1717226145043,2.9191,3787.6,3786.7,0.635]
[1717226145266,0.07115513,3787.5,3786.7,0.635]
[1717226148279,0.07115513,3787.5,3786.6,2.64085]
[1717226148484,0.07115513,3787.5,3786.7,0.55]
[1717226155179,2.899,3787.4,3786.6,2.64085]
[1717226155508,0.36814315,3787.3,3786.6,2.64085]
[1717226156314,0.07112764,3787.3,3786.6,2.64085]
[1717226164421,0.07112764,3787.3,3786.7,0.55]
[1717226172123,0.07112764,3787.3,3786.8,2.3711]
[1717226172297,3.0803,3787.7,3786.8,2.3711]
[1717226172938,0.07114112,3787.6,3786.8,2.3711]
[1717226173222,0.07114112,3787.6,3786.8,2.990795]
[1717226173431,0.07114112,3787.6,3786.8,3.625795]
[1717226174318,0.07114112,3787.6,3786.9,2.64067]
[1717226180431,2.4453,3787.5,3786.9,2.64067]
[1717226180950,0.07124346,3787.4,3786.9,2.64067]
[1717226198449,0.07124346,3787.4,3786.5,2.4376]
[1717226198679,0.635,3787.3,3786.5,2.4376]
[1717226198833,0.635,3787.3,3786.4,10.07101]
[1717226199024,2.35600332,3787.2,3786.4,10.07101]
[1717226199223,0.635,3787.1,3786.4,10.07101]
[1717226199655,0.07105904,3787.0,3786.4,10.07101]
[1717226200445,2.2849,3787.2,3786.4,10.07101]
[1717226200752,2.87243344,3787.2,3786.4,10.07101]
[1717226200937,0.07108118,3787.1,3786.4,10.07101]
[1717226201142,0.07108118,3787.1,3786.4,2.64101]
[1717226209485,2.2505,3787.0,3786.4,2.64101]
[1717226209850,0.07110715,3786.9,3786.4,2.64101]
[1717226216668,2.2505,3786.8,3786.4,2.64101]
[1717226217168,0.07067674,3786.7,3786.4,2.64101]
[1717226217368,2.2505,3786.8,3786.4,2.64101]
[1717226217782,0.07067674,3786.7,3786.4,2.64101]
[1717226218087,2.2505,3786.8,3786.4,2.64101]
[1717226218283,0.0706546,3786.6,3786.4,2.64101]
[1717226218736,2.2505,3786.8,3786.4,2.64101]
[1717226218896,0.07063246,3786.5,3786.4,2.64101]
[1717226219080,2.53905,3786.8,3786.4,2.64101]
[1717226219268,0.07063246,3786.5,3786.4,2.64101]
[1717226219586,2.53905,3786.8,3786.4,2.64101]
[1717226219587,2.2505,3786.8,3786.4,2.64101]
[1717226219989,2.53905,3786.8,3786.4,2.64101]
[1717226220177,0.07067674,3786.7,3785.9,3.27632]
[1717226220395,2.53905,3786.8,3785.9,2.64132]
[1717226221489,2.2505,3786.8,3786.1,3.27619]
[1717226221993,0.07062598,3786.7,3786.1,3.27619]
[1717226222518,2.2505,3786.8,3786.1,3.27619]
[1717226222865,0.07062598,3786.7,3786.1,3.27619]
[1717226223173,2.9361,3787.1,3786.1,3.839159]
[1717226223486,0.07071213,3787.0,3786.1,3.839159]
[1717226225704,0.07071213,3787.0,3786.1,3.204159]
[1717226226015,2.3011,3786.9,3786.1,2.64119]
[1717226226169,0.07066785,3786.8,3786.1,2.64119]
[1717226233031,0.635,3786.7,3786.1,2.64119]
[1717226233231,0.0705728,3786.6,3786.1,2.64119]
[1717226233994,2.3011,3786.5,3786.1,2.64119]
[1717226234327,0.07050272,3786.4,3786.1,2.64119]
[1717226236133,0.37116299,3786.4,3785.7,7.43]
[1717226236344,1.00616299,3786.4,3785.7,7.43]
[1717226236509,0.93566027,3786.4,3785.7,7.43]
[1717226238332,2.3011,3786.3,3785.7,7.43]
[1717226238712,0.0704133,3786.2,3785.7,7.43]
[1717226239212,0.0704133,3786.2,3785.6,2.64158]
[1717226239423,2.3011,3786.3,3785.6,2.969238]
[1717226246436,2.3675,3786.6,3785.8,2.64144]
[1717226246645,0.07047973,3786.5,3786.0,0.635]
[1717226247056,3.0025,3786.9,3786.0,0.635]
[1717226247210,0.07040793,3786.8,3786.0,0.635]
[1717226247534,0.635,3786.7,3785.8,2.64144]
[1717226247739,2.3675,3786.6,3785.8,2.64144]
[1717226247936,2.4380047,3786.6,3785.8,2.64144]
[1717226250029,0.635,3786.5,3785.8,2.64144]
[1717226250232,2.4379233,3786.4,3785.8,2.64144]
[1717226254445,2.4379233,3786.4,3785.3,2.64174]
[1717226254646,0.635,3786.3,3785.3,5.56384]
[1717226254846,0.635,3786.3,3785.3,8.18386435]
[1717226255344,0.635,3786.3,3785.3,5.89676435]
[1717226255512,2.3675,3786.2,3785.3,5.89676435]
[1717226261761,2.3675,3786.2,3785.5,0.635]
[1717226264582,2.3675,3786.2,3785.3,5.26176435]
[1717226264888,2.3675,3786.2,3785.3,5.89676435]
[1717226267091,2.4622,3786.0,3785.3,2.64174]
[1717226269064,0.06796118,3785.9,3785.3,2.64174]
[1717226269250,2.4622,3785.8,3785.3,2.64174]
[1717226269457,0.06791687,3785.7,3785.3,2.64174]
[1717226269689,2.4622,3785.8,3785.3,2.64174]
[1717226270102,0.06791687,3785.7,3785.3,2.64174]
[1717226270591,2.4622,3785.8,3785.3,3.27674]
[1717226271089,0.06791687,3785.7,3785.3,3.27674]
[1717226271288,2.4622,3786.2,3785.3,4.347414]
[1717226271457,2.4622,3786.2,3785.3,6.721714]
[1717226273383,2.4622,3786.2,3785.6,2.64157]
[1717226273696,0.06799701,3786.1,3785.6,2.64157]
[1717226283717,0.635,3786.4,3785.6,2.64157]
[1717226283944,0.06791658,3786.0,3785.6,2.64157]
[1717226284142,0.635,3786.4,3785.6,3.3137244]
[1717226284413,0.635,3786.4,3785.6,2.64157]
[1717226284629,0.06803666,3786.3,3785.6,2.64157]
[1717226284831,0.06803666,3786.3,3785.8,2.64143]
[1717226285031,5.2569,3786.8,3785.9,0.635]
[1717226285314,0.06815602,3786.7,3785.9,0.635]
[1717226285721,0.06815602,3786.7,3786.2,2.3123]
[1717226285935,0.5960056,3786.6,3785.7,7.43]
[1717226286123,2.2569,3786.5,3785.7,7.43]
[1717226286327,2.32503147,3786.5,3785.7,7.43]
[1717226286544,0.635,3786.4,3785.7,7.43]
[1717226286735,0.99060371,3786.4,3785.7,7.43]
[1717226286932,0.06827644,3786.3,3785.7,7.43]
[1717226287338,2.2569,3786.2,3785.7,7.43]
[1717226287650,0.06823214,3786.1,3785.7,7.43]
[1717226287838,2.2569,3786.2,3785.7,7.43]
[1717226288039,0.32475037,3786.1,3785.7,7.43]
[1717226289148,0.32475037,3786.1,3785.4,2.64167]
[1717226295204,2.2569,3786.0,3785.4,2.64167]
[1717226295559,0.06742364,3785.9,3785.4,2.64167]
[1717226296553,2.2569,3786.0,3785.4,2.64167]
[1717226296748,0.06740149,3785.8,3785.4,2.64167]
[1717226296950,0.06742364,3785.9,3785.4,2.64167]
[1717226297150,0.06737933,3785.7,3785.4,2.64167]
[1717226297370,0.06740149,3785.8,3785.4,2.64167]
[1717226297690,0.06737933,3785.7,3785.4,2.64167]
[1717226297862,2.2569,3786.0,3785.4,2.64167]
[1717226298061,0.06742364,3785.9,3785.4,2.64167]
[1717226303789,2.2745,3785.8,3785.4,2.64167]
[1717226304089,0.06735113,3785.7,3785.4,2.64167]
[1717226304254,2.2745,3785.8,3785.4,2.64167]
[1717226304454,0.06735113,3785.7,3785.4,2.64167]
[1717226304785,2.2745,3785.8,3785.4,2.64167]
[1717226305186,0.06735113,3785.7,3785.4,2.64167]
[1717226305599,2.2745,3785.8,3785.4,2.64167]
[1717226306101,2.2745,3785.6,3785.1,7.43]
[1717226309569,2.2745,3785.6,3784.9,3.27704]
[1717226310877,2.2745,3785.6,3784.9,2.64204]
[1717226311077,2.2745,3785.6,3784.9,3.27704]
[1717226311272,2.2745,3785.6,3784.9,5.87424572]
[1717226312602,2.2745,3785.6,3784.9,5.23924572]
[1717226312803,2.2745,3785.6,3784.9,5.87424572]
[1717226317441,2.2745,3785.6,3784.9,3.27704]
[1717226319102,2.2745,3785.6,3784.9,2.64204]
[1717226323644,2.462,3785.4,3784.9,2.64204]
[1717226324063,0.06722017,3785.3,3784.9,2.64204]
[1717226327839,0.06722017,3785.3,3784.9,3.27704]
[1717226328143,2.462,3785.6,3784.9,4.589744]
[1717226328320,0.06709037,3785.2,3784.9,3.27704]
[1717226328642,2.462,3785.8,3784.9,3.27704]
[1717226328843,2.462,3785.8,3784.9,2.64204]
[1717226329070,2.462,3785.6,3784.9,2.64204]
[1717226329344,2.462,3785.4,3784.9,2.64204]
[1717226329840,0.06717346,3785.3,3784.9,2.64204]
[1717226334250,2.462,3785.4,3784.9,2.64204]
[1717226334454,0.06718744,3785.2,3784.9,2.64204]
[1717226334633,0.0672096,3785.3,3784.9,2.64204]
[1717226334814,2.462,3785.4,3784.9,2.64204]
[1717226335017,2.462,3785.1,3784.9,2.64204]
[1717226335555,0.06712554,3785.0,3784.9,2.64204]
[1717226336918,2.462,3785.3,3784.9,2.64204]
[1717226337133,0.06716986,3785.2,3784.9,2.64204]
[1717226337347,2.462,3785.3,3784.9,2.64204]
[1717226337557,0.0671477,3785.1,3784.9,2.64204]
[1717226337758,2.462,3785.3,3784.9,2.64204]
[1717226337946,0.06712554,3785.0,3784.9,2.64204]
[1717226338337,2.462,3785.3,3784.9,2.64204]
[1717226338551,0.06716986,3785.2,3784.9,2.64204]
[1717226339096,2.462,3785.6,3784.9,2.64204]
[1717226339231,0.0671477,3785.1,3784.9,3.27704]
[1717226339559,2.462,3785.6,3784.9,3.27704]
[1717226339765,0.067139,3785.0,3784.9,3.27704]
[1717226340065,2.462,3785.6,3784.9,3.846744]
[1717226340358,0.06729145,3785.5,3784.9,3.27704]
[1717226345085,0.06729145,3785.5,3784.9,2.64204]
[1717226347301,2.3905,3785.4,3784.9,2.64204]
[1717226347588,0.06720677,3785.3,3784.9,2.64204]
[1717226351987,2.3905,3785.2,3784.5,7.43]
[1717226352953,2.69305,3785.2,3784.5,7.43]
[1717226353285,0.635,3785.1,3784.4,2.64236]
[1717226353494,0.70180865,3785.1,3784.4,2.64236]
[1717226353784,0.635,3785.1,3784.4,2.64236]
[1717226354391,2.3905,3785.0,3784.4,2.64236]
[1717226356402,2.723305,3785.0,3784.4,2.64236]
[1717226356774,0.06616536,3784.9,3784.4,2.64236]
[1717226357972,0.06616536,3784.9,3784.5,0.635]
[1717226361319,0.06616536,3784.9,3784.4,2.64236]
[1717226361645,0.06616536,3784.9,3784.4,3.27736]
[1717226363096,0.06616536,3784.9,3784.4,4.348096]
[1717226363316,2.3899,3785.2,3784.4,4.348096]
[1717226363665,0.06615663,3785.1,3784.4,2.64236]
[1717226365199,2.3899,3785.0,3784.4,2.64236]
[1717226365414,2.45602881,3785.0,3784.4,2.64236]
[1717226365976,2.3899,3785.0,3784.4,2.64236]
[1717226366169,0.06610665,3784.9,3784.4,2.64236]
[1717226369735,2.3899,3784.8,3784.1,7.43]
[1717226369939,3.0249,3784.8,3783.9,2.64275]
[1717226370234,3.0249,3784.8,3783.9,3.27775]
[1717226370409,2.3899,3784.8,3783.9,3.27775]
[1717226370611,2.72330007,3784.8,3783.9,3.27775]
[1717226371411,2.72330007,3784.8,3784.1,0.635]
[1717226372401,2.72330007,3784.8,3783.9,3.27775]
[1717226374344,0.36674007,3784.7,3783.9,3.27775]
[1717226374501,2.3899,3784.6,3783.9,3.27775]
[1717226374701,3.0249,3784.6,3783.9,2.64275]
[1717226375124,2.3899,3784.6,3783.9,2.64275]
[1717226377951,3.0249,3784.6,3783.9,2.64275]
[1717226378309,2.3899,3784.5,3783.9,2.64275]
[1717226379236,3.0249,3784.5,3783.9,4.874025]
[1717226379436,3.0249,3784.5,3783.9,2.64275]
[1717226379737,0.06576995,3784.4,3783.9,2.64275]
[1717226379943,3.0249,3784.5,3783.9,2.64275]
[1717226380151,0.06576995,3784.4,3783.9,2.64275]
[1717226380473,3.0249,3784.5,3783.9,2.64275]
[1717226380844,0.06576995,3784.4,3783.9,2.64275]
[1717226381354,3.0249,3784.5,3783.9,2.64275]
[1717226381555,0.06576995,3784.4,3783.9,2.64275]
[1717226381858,3.0249,3784.5,3783.9,2.64275]
[1717226382221,0.06576995,3784.4,3783.9,2.64275]
[1717226382622,3.0249,3784.5,3783.9,2.64275]
[1717226383130,0.06562031,3784.4,3783.9,2.64275]
[1717226383331,3.0249,3784.5,3783.9,2.64275]
[1717226383657,0.06562031,3784.4,3783.9,2.64275]
[1717226384150,3.0249,3784.5,3783.9,2.64275]
[1717226384381,0.06562031,3784.4,3783.9,2.64275]
[1717226384555,3.0249,3784.5,3783.9,2.64275]
[1717226384877,0.06562031,3784.4,3783.9,2.64275]
[1717226385179,0.635,3784.7,3783.9,3.883465]
[1717226385377,0.06566466,3784.6,3783.9,3.883465]
[1717226387879,2.9874,3784.5,3783.9,2.64275]
[1717226388243,0.06560335,3784.4,3783.7,7.43]
[1717226388549,0.635,3784.3,3783.4,4.97747]
[1717226388751,2.9874,3784.5,3783.5,3.0]
[1717226389159,2.9874,3784.5,3783.6,2.64296]
[1717226390249,2.3524,3784.5,3783.6,2.64296]
[1717226390567,0.635,3784.7,3783.8,2.64283]
[1717226390773,0.06562793,3784.6,3783.8,3.504053]
[1717226394393,2.9874,3784.8,3783.9,2.3344]
[1717226394689,0.06345018,3784.7,3783.9,2.3344]
[1717226395553,0.635,3784.6,3783.9,2.3344]
[1717226395751,0.635,3784.6,3783.9,2.91789567]
[1717226399289,2.3524,3785.2,3784.0,2.6427]
[1717226399497,0.635,3784.8,3784.0,2.6427]
[1717226399858,0.0625363,3784.7,3784.0,2.6427]
[1717226401859,0.0625363,3784.7,3783.9,2.91789567]
[1717226401860,0.0625363,3784.7,3784.3,2.3344]
[1717226402062,0.0625363,3784.7,3784.4,0.497694]
[1717226402367,3.27681,3785.3,3784.4,0.497694]
[1717226402368,0.0625706,3784.6,3784.4,0.497694]
[1717226402707,3.27681,3785.3,3784.4,0.497694]
[1717226403003,0.06270361,3785.2,3784.3,2.9694]
[1717226403402,0.06270361,3785.2,3784.3,2.3344]
[1717226406396,3.1222,3785.1,3784.2,5.71474]
[1717226406583,0.06265928,3785.0,3784.3,0.55]
[1717226409632,0.635,3784.9,3784.2,2.64254]
[1717226410227,0.06272789,3784.8,3784.2,2.64254]
[1717226414051,0.635,3784.7,3784.0,7.43]
[1717226414362,2.4872,3784.6,3784.0,7.43]
[1717226417269,0.635,3784.9,3784.0,7.43]
[1717226417270,3.1222,3784.9,3784.0,8.744506]
[1717226417627,0.06269399,3784.8,3784.0,8.744506]
[1717226417956,0.06269399,3784.8,3784.1,5.71482]
[1717226418374,2.4872,3785.1,3784.1,5.71482]
[1717226418841,0.06264232,3785.0,3784.1,5.71482]
[1717226419042,0.06264232,3785.0,3784.3,2.64248]
[1717226421547,0.06264232,3785.0,3784.5,3.2773]
[1717226421748,3.1222,3785.4,3784.5,2.6423]
[1717226421976,0.06073207,3785.3,3784.5,2.6423]
[1717226425305,2.2621,3785.2,3784.5,2.6423]
[1717226425465,2.8971,3785.2,3784.5,2.6423]
[1717226425663,0.0587821,3785.1,3784.5,2.6423]
[1717226425861,0.0587821,3785.1,3784.5,4.9219]
[1717226426061,0.635,3785.2,3784.5,4.9219]
[1717226426263,0.98779045,3785.2,3784.5,4.9219]
[1717226426470,0.0587821,3785.1,3784.5,4.9219]
[1717226426898,0.98779045,3785.2,3784.5,4.9219]
[1717226427262,0.0587821,3785.1,3784.5,4.9219]
[1717226427769,0.98779045,3785.2,3784.5,4.9219]
[1717226428086,0.0587821,3785.1,3784.5,4.9219]
[1717226428487,0.98779045,3785.2,3784.5,4.9219]
[1717226428883,0.0587821,3785.1,3784.5,4.9219]
[1717226429213,0.98779045,3785.2,3784.5,4.9219]
[1717226429427,0.0587821,3785.1,3784.5,4.9219]
[1717226429618,0.98779045,3785.2,3784.5,4.9219]
[1717226429806,0.0587821,3785.1,3784.5,4.9219]
[1717226430134,0.635,3785.2,3784.5,4.9219]
[1717226430513,0.0587821,3785.1,3784.5,4.9219]
[1717226431024,0.635,3785.2,3784.5,4.9219]
[1717226431223,0.05873692,3785.1,3784.5,4.9219]
[1717226431741,2.2621,3785.6,3784.5,4.9219]
[1717226431898,0.635,3785.4,3784.5,4.9219]
[1717226432301,0.09183033,3785.3,3784.5,4.9219]
[1717226449478,2.2958,3785.2,3784.5,2.6423]
[1717226449746,2.9308,3785.2,3784.5,2.6423]
[1717226449947,0.30226303,3785.1,3784.5,2.6423]
[1717226450953,0.09182292,3785.0,3784.5,2.6423]
[1717226452166,0.72682292,3785.0,3784.0,10.07265]
[1717226452343,0.635,3784.8,3784.0,10.07265]
[1717226452835,0.635,3784.6,3784.0,10.07265]
[1717226453418,0.635,3784.8,3784.0,10.07265]
[1717226459786,0.635,3784.8,3784.0,2.64265]
[1717226460448,2.2958,3784.7,3784.0,2.64265]
[1717226460648,0.557282,3784.7,3784.0,2.64265]
[1717226460943,0.635,3784.9,3784.0,2.64265]
[1717226461368,0.09132363,3784.8,3784.0,2.64265]
[1717226461895,0.635,3784.9,3784.0,2.64265]
[1717226462264,0.09129257,3784.8,3784.0,2.64265]
[1717226462669,4.93782,3785.0,3784.1,2.4792]
[1717226462858,0.5240083,3784.9,3784.1,2.4792]
[1717226463060,0.6153391,3784.9,3784.1,2.4792]
[1717226465764,0.6153391,3784.9,3784.2,2.64253]
[1717226465765,0.0913308,3784.9,3784.2,2.64253]
[1717226466057,2.64171,3785.5,3784.2,2.64253]
[1717226466058,0.635,3785.2,3784.2,2.64253]
[1717226466458,0.08830944,3785.1,3784.2,2.64253]
[1717226466655,0.08830944,3785.1,3784.3,2.2602]
[1717226476201,0.08830944,3785.1,3784.4,2.64242]
[1717226476607,0.635,3785.0,3784.4,2.64242]
[1717226477099,0.08831768,3784.9,3784.4,2.64242]
[1717226480269,0.08831768,3784.9,3784.1,2.2602]
[1717226480779,0.635,3785.0,3784.1,2.2602]
[1717226481197,0.08842498,3784.9,3784.1,2.2602]
[1717226481578,0.635,3785.0,3784.1,2.2602]
[1717226481980,0.08546515,3784.9,3784.1,2.2602]
[1717226482410,0.635,3785.0,3784.1,2.2602]
[1717226482709,0.96599309,3785.0,3784.1,2.2602]
[1717226482908,0.08546515,3784.9,3784.1,2.2602]
[1717226483314,0.96599309,3785.0,3784.1,2.2602]
[1717226483714,0.08546515,3784.9,3784.1,2.2602]
[1717226484213,2.2936,3784.8,3784.1,2.2602]
[1717226484513,0.08542256,3784.7,3784.1,2.2602]
[1717226484714,2.9286,3784.8,3784.1,2.2602]
[1717226485094,0.08542256,3784.7,3784.1,2.2602]
[1717226485593,2.9286,3784.8,3783.9,2.64271]
[1717226485904,0.08532373,3784.7,3783.9,4.96201]
[1717226486077,2.9286,3784.8,3783.9,4.96201]
[1717226487396,2.9286,3784.8,3783.9,6.264711]
[1717226491632,2.9286,3784.8,3783.9,3.945411]
[1717226507985,2.3195,3784.7,3783.9,2.64271]
[1717226508372,2.3195,3784.5,3783.9,2.64271]
[1717226513488,2.3195,3784.3,3783.9,2.64271]
[1717226515673,2.3195,3784.3,3783.7,7.43]
[1717226517713,2.3195,3784.3,3783.7,2.64287]
[1717226520786,2.3195,3784.9,3783.9,2.64272]
[1717226521029,0.07830124,3784.2,3783.9,2.64272]
[1717226521180,2.3195,3784.9,3783.9,3.27772]
[1717226524223,0.635,3784.8,3783.9,3.27772]
[1717226525324,2.3195,3784.9,3783.9,3.27772]
[1717226525526,10.07071,3786.9,3784.2,2.938]
[1717226525527,2.4707,3785.3,3784.2,2.938]
[1717226525723,0.07849416,3784.8,3784.4,3.27742]
[1717226526111,2.4707,3785.3,3784.4,3.27742]
[1717226526302,0.31057,3785.2,3784.4,3.27742]
[1717226527028,0.07868547,3785.1,3784.4,3.27742]
[1717226527430,0.07868547,3785.1,3784.6,0.635]
[1717226527599,0.07868547,3785.1,3784.4,2.64242]
[1717226527600,0.07868547,3785.1,3784.4,3.27742]
[1717226528001,2.4707,3785.3,3784.4,3.27742]
[1717226528330,3.10370635,3785.3,3784.4,3.27742]
[1717226528631,0.07890065,3785.2,3784.4,3.27742]
[1717226533742,0.07890065,3785.2,3784.7,2.64221]
[1717226533947,0.635,3785.5,3784.7,2.64221]
[1717226534120,0.07887936,3785.1,3784.7,2.64221]
[1717226534448,0.635,3785.5,3784.7,2.64221]
[1717226534684,0.07885807,3785.0,3784.7,2.64221]
[1717226534809,0.635,3785.5,3784.7,2.64221]
[1717226535006,0.07883678,3784.9,3784.7,2.64221]
[1717226535224,0.635,3785.5,3784.7,2.64221]
[1717226535425,0.07881548,3784.8,3784.7,2.64221]
[1717226535627,0.635,3785.5,3784.7,2.64221]
[1717226535822,0.36884335,3785.4,3784.7,2.64221]
[1717226536046,0.44779465,3785.4,3784.7,2.64221]
[1717226537053,0.07893807,3785.3,3785.2,2.64185]
[1717226537552,3.1057,3786.2,3785.2,2.64185]
[1717226537756,0.07636016,3785.3,3785.2,2.64185]
[1717226538057,0.635,3786.0,3785.2,2.64185]
[1717226538221,0.94557,3786.0,3785.2,2.64185]
[1717226538417,0.07647661,3785.9,3785.2,2.64185]
[1717226539548,0.07647661,3785.9,3785.6,2.64155]
[1717226539753,0.07647661,3785.9,3785.7,0.635]
[1717226539927,2.4707,3786.4,3785.7,0.635]
[1717226540249,2.4707,3786.4,3785.8,2.64144]
[1717226541721,2.4707,3786.6,3785.8,2.64144]
[1717226541934,0.31057,3786.5,3785.8,2.64144]
[1717226542770,2.4218,3786.9,3786.0,2.6413]
[1717226543145,3.0568,3786.9,3786.0,2.6413]
[1717226544768,0.07691296,3786.8,3786.0,2.6413]
[1717226547735,0.07689169,3786.7,3786.0,2.6413]
[1717226555701,0.635,3786.8,3786.0,2.6413]
[1717226555878,0.07689993,3786.6,3786.0,2.6413]
[1717226556078,0.0769212,3786.7,3786.0,2.6413]
[1717226556279,0.07683905,3786.5,3786.0,2.6413]
[1717226556482,0.07686033,3786.6,3786.0,2.6413]
[1717226556682,0.07681777,3786.4,3786.0,2.6413]
[1717226556859,0.07683905,3786.5,3786.0,2.6413]
[1717226557059,0.0767965,3786.3,3786.0,2.6413]
[1717226557259,0.07681777,3786.4,3786.0,2.6413]
[1717226557507,0.635,3786.8,3786.0,2.6413]
[1717226557713,0.0767965,3786.3,3786.0,2.6413]
[1717226558019,0.635,3786.8,3786.0,2.6413]
[1717226558299,0.07677522,3786.2,3786.0,2.6413]
[1717226558503,0.635,3786.8,3786.0,2.6413]
[1717226558702,1.24068,3786.8,3786.0,2.6413]
[1717226559002,0.0768816,3786.7,3786.0,2.6413]
[1717226559377,2.4986816,3786.7,3786.0,2.6413]
[1717226569182,0.57093121,3786.6,3786.0,2.6413]
[1717226569425,0.07685198,3786.5,3786.0,2.6413]
[1717226576649,0.635,3786.3,3785.7,9.8351]
[1717226576812,0.07726927,3786.2,3785.7,9.8351]
[1717226577214,0.57093121,3786.4,3785.7,9.8351]
[1717226577427,0.07729054,3786.3,3785.7,9.8351]
[1717226579481,3.70698632,3786.5,3785.7,9.8351]
[1717226579631,0.07726927,3786.2,3785.7,9.8351]
[1717226579816,3.70698632,3786.5,3785.7,9.83358567]
[1717226580050,0.70590368,3786.4,3785.7,9.83358567]
[1717226580250,1.27687946,3786.4,3785.7,9.83358567]
[1717226582054,0.635,3786.3,3785.7,2.4051]
[1717226582254,0.0772042,3786.2,3785.7,2.4051]
[1717226583485,2.64124,3786.1,3785.4,2.3981]
[1717226583915,0.07716164,3786.0,3785.4,2.3981]
[1717226595797,0.07716164,3786.0,3785.4,3.0331]
[1717226598938,2.3225,3786.3,3785.4,3.0331]
[1717226599240,0.07385803,3786.2,3785.4,3.0331]
[1717226599439,0.07385803,3786.2,3785.5,1.04615857]
[1717226599614,2.3225,3786.3,3785.6,0.635]
[1717226599933,5.16056232,3786.6,3785.6,0.635]
[1717226600231,0.64480285,3786.5,3785.7,2.3981]
[1717226602343,0.64479988,3786.5,3785.7,2.3981]
[1717226602725,0.07383904,3786.5,3785.7,2.3981]
[1717226603036,0.64479809,3786.5,3785.7,2.3981]
[1717226603942,1.27979809,3786.5,3785.7,2.3981]
[1717226609350,1.92383413,3786.5,3785.7,2.3981]
[1717226609553,1.35287508,3786.5,3785.7,2.3981]
[1717226621265,0.57095359,3786.4,3785.7,2.3981]
[1717226621570,0.07369397,3786.3,3785.7,2.3981]
[1717226622758,0.57095359,3786.5,3785.7,2.3981]
[1717226622958,0.07366986,3786.2,3785.7,3.07019086]
[1717226623272,0.07364858,3786.1,3785.7,3.07019086]
[1717226623420,0.57095359,3786.5,3785.7,3.07019086]
[1717226623619,0.07371241,3786.4,3785.7,3.07019086]
[1717226624464,5.79556232,3786.6,3785.7,3.07019086]
[1717226624652,0.07373369,3786.5,3785.7,2.3981]
[1717226625252,0.64466716,3786.5,3785.7,2.3981]
[1717226626331,0.64466712,3786.5,3785.7,2.3981]
[1717226628365,0.07373369,3786.5,3785.7,2.3981]
[1717226628575,0.64467155,3786.5,3785.7,2.3981]
[1717226635096,0.64467155,3786.5,3785.7,3.07019086]
[1717226635301,0.64467155,3786.5,3785.8,2.3652]
[1717226635464,0.07373369,3786.5,3785.8,2.3652]
[1717226641980,0.07373369,3786.5,3785.8,3.0002]
[1717226642178,0.07373369,3786.5,3785.9,2.3652]
[1717226656411,0.64467198,3786.5,3785.9,2.3652]
[1717226658325,0.64467481,3786.5,3785.9,2.3652]
[1717226662418,0.07373369,3786.5,3785.9,2.3652]
[1717226662723,0.6446772,3786.5,3785.9,2.3652]
[1717226677027,0.07373369,3786.5,3785.9,2.3652]
[1717226677231,0.64467499,3786.5,3785.9,2.3652]
[1717226689850,0.07373369,3786.5,3785.9,2.3652]
[1717226707143,0.635,3786.0,3785.3,7.42848567]
[1717226707343,0.635,3785.8,3785.3,7.42848567]
[1717226708355,0.06575687,3785.7,3785.3,7.42848567]
[1717226709017,3.46657652,3786.0,3785.3,7.42848567]
[1717226709245,0.06573558,3785.6,3785.3,7.42848567]
[1717226709433,3.46657652,3786.0,3785.0,4.89754]
[1717226709645,0.06571429,3785.5,3785.0,4.89754]
[1717226709830,3.46657652,3786.0,3785.1,0.553254]
[1717226710123,0.06579943,3785.9,3785.0,4.89754]
[1717226710917,2.2739,3785.8,3785.0,4.89754]
[1717226714160,0.06340164,3785.7,3785.0,4.89754]
[1717226715838,0.06340164,3785.7,3784.7,7.42848567]
[1717226716036,0.635,3785.5,3784.7,7.42848567]
[1717226716779,2.2739,3785.6,3784.7,7.42848567]
[1717226716927,2.2739,3785.6,3784.7,9.94862424]
[1717226717131,2.2739,3785.6,3784.7,10.58362424]
[1717226718068,2.2739,3785.6,3784.7,9.94862424]
[1717226718359,2.2739,3785.6,3784.7,10.58362424]
[1717226721680,0.635,3784.9,3784.2,7.42848567]
[1717226721989,2.2739,3784.8,3783.8,10.70627567]
[1717226722288,2.2739,3784.8,3783.8,10.07127567]
[1717226722594,2.2739,3784.8,3783.9,0.635]
[1717226722786,0.0629079,3784.7,3783.9,0.635]
[1717226723176,2.2739,3784.8,3783.9,0.635]
[1717226724184,2.2739,3784.8,3783.8,12.52796324]
[1717226724365,2.2739,3784.8,3783.9,0.635]